bitfinex/quotes_SOLUSD_20250406
["timestamp","ask_amount","ask_price","bid_price","bid_amount"]
[1743964012357,0.03,109.58,109.56,45.79548708]
[1743964012562,0.03,109.58,109.54,45.79548708]
[1743964012936,45.82548708,109.58,109.5,45.85848708]
[1743964013137,45.79548708,109.55,109.5,45.85848708]
[1743964013542,18.963972,109.58,109.52,45.79548708]
[1743964013543,45.79548708,109.57,109.52,45.79548708]
[1743964013760,0.03,109.58,109.55,45.79548708]
[1743964014132,0.03,109.58,109.5,68.23278708]
[1743964014133,0.03,109.58,109.54,45.79548708]
[1743964014338,0.03,109.58,109.55,45.79548708]
[1743964014635,0.03,109.58,109.57,45.79548708]
[1743964014856,0.03,109.58,109.56,45.79548708]
[1743964015054,0.03,109.58,109.53,0.14216157]
[1743964015263,0.03,109.58,109.56,45.79548708]
[1743964015667,0.03,109.58,109.5,45.85848708]
[1743964015867,0.03,109.58,109.54,45.79548708]
[1743964016056,0.03,109.58,109.55,45.79548708]
[1743964016574,45.82548708,109.58,109.5,45.85848708]
[1743964016777,17.96,109.57,109.53,45.79548708]
[1743964017246,18.64964886,109.53,109.5,0.063]
[1743964017443,45.79548708,109.52,109.5,0.063]
[1743964017956,64.44513594,109.51,109.5,0.063]
[1743964018173,45.79548708,109.52,109.5,0.063]
[1743964018374,45.79548708,109.53,109.5,0.063]
[1743964018553,45.79548708,109.51,109.5,0.063]
[1743964018871,71.79548708,109.52,109.5,0.063]
[1743964019074,36.44964886,109.57,109.51,45.79548708]
[1743964019259,82.24513594,109.57,109.51,45.79548708]
[1743964019582,45.79548708,109.56,109.51,45.79548708]
[1743964020173,45.79548708,109.55,109.5,45.85848708]
[1743964020385,45.79548708,109.55,109.5,0.063]
[1743964020386,45.79548708,109.54,109.5,0.063]
[1743964020749,45.79548708,109.55,109.5,45.85848708]
[1743964021149,45.79548708,109.55,109.5,0.063]
[1743964021374,18.64964886,109.56,109.5,0.063]
[1743964021695,45.79548708,109.51,109.5,0.063]
[1743964022084,45.79548708,109.52,109.5,0.063]
[1743964022270,45.79548708,109.51,109.5,0.063]
[1743964022661,71.79548708,109.51,109.5,0.063]
[1743964022883,90.72945908,109.51,109.5,0.063]
[1743964023072,90.72945908,109.51,109.41,0.14216157]
[1743964023073,0.28432314,109.5,109.41,0.14216157]
[1743964023279,90.87162065,109.51,109.45,45.79548708]
[1743964023280,17.52,109.49,109.45,45.79548708]
[1743964023463,17.52,109.49,109.46,45.79548708]
[1743964023663,17.52,109.49,109.45,45.79548708]
[1743964023871,63.31548708,109.49,109.4,45.79548708]
[1743964024073,26.0,109.46,109.39,0.063]
[1743964024272,71.79548708,109.44,109.39,45.85848708]
[1743964024459,45.79548708,109.43,109.39,0.063]
[1743964024666,63.25548708,109.42,109.39,0.063]
[1743964025179,17.46,109.42,109.39,45.85848708]
[1743964025580,341.84,109.51,109.42,0.14216157]
[1743964025761,341.84,109.51,109.47,45.79548708]
[1743964025957,341.84,109.51,109.45,45.79548708]
[1743964026162,387.63548708,109.51,109.45,45.79548708]
[1743964026463,387.63548708,109.51,109.43,45.79548708]
[1743964026464,64.44513594,109.48,109.43,45.79548708]
[1743964026766,45.79548708,109.47,109.42,45.79548708]
[1743964027085,64.44513594,109.44,109.39,0.063]
[1743964027390,18.64964886,109.44,109.39,0.063]
[1743964027596,45.79548708,109.4,109.39,0.063]
[1743964027892,64.44513594,109.4,109.39,0.063]
[1743964028270,110.52494616,109.4,109.39,0.063]
[1743964028467,63.15548708,109.4,109.39,0.063]
[1743964029168,52.18828708,109.5,109.39,45.85848708]
[1743964029367,17.34,109.46,109.39,45.85848708]
[1743964029569,17.34,109.46,109.41,45.79548708]
[1743964029777,63.13548708,109.46,109.39,0.063]
[1743964029982,17.34,109.46,109.41,45.79548708]
[1743964030182,17.34,109.46,109.44,45.79548708]
[1743964030482,52.18538708,109.55,109.45,45.79548708]
[1743964030686,45.79548708,109.52,109.47,45.79548708]
[1743964030858,45.79548708,109.52,109.46,45.79548708]
[1743964031260,45.79548708,109.53,109.45,45.93764865]
[1743964031467,45.79548708,109.53,109.48,45.79548708]
[1743964032291,45.79548708,109.49,109.4,6.3983]
[1743964032462,45.79548708,109.47,109.42,45.79548708]
[1743964032666,45.79548708,109.44,109.39,0.063]
[1743964032866,45.79548708,109.43,109.39,0.063]
[1743964033089,26.0,109.44,109.39,45.85848708]
[1743964033296,17.2,109.47,109.41,45.79548708]
[1743964033471,17.2,109.47,109.42,45.79548708]
[1743964033669,64.44513594,109.46,109.41,45.79548708]
[1743964033869,17.16,109.45,109.39,0.20516157]
[1743964034082,18.64964886,109.47,109.42,45.79548708]
[1743964034300,64.44513594,109.47,109.42,45.79548708]
[1743964034588,64.44513594,109.47,109.39,6.4619]
[1743964034589,63.11548708,109.48,109.43,45.79548708]
[1743964035179,17.32,109.48,109.44,45.79548708]
[1743964035393,17.26,109.49,109.44,45.79548708]
[1743964035580,89.03548708,109.52,109.47,45.79548708]
[1743964035779,63.03548708,109.52,109.47,45.79548708]
[1743964036071,45.79548708,109.5,109.43,6.3962]
[1743964036279,45.79548708,109.5,109.45,45.79548708]
[1743964036463,17.2,109.52,109.49,45.79548708]
[1743964037503,17.2,109.52,109.51,45.79548708]
[1743964037691,341.98,109.55,109.51,45.79548708]
[1743964037894,64.44513594,109.54,109.49,45.79548708]
[1743964038091,341.98,109.55,109.51,45.79548708]
[1743964038293,387.77548708,109.55,109.5,45.79548708]
[1743964038875,387.77548708,109.55,109.45,52.19078708]
[1743964038876,45.79548708,109.53,109.45,52.19078708]
[1743964039088,45.79548708,109.54,109.48,45.79548708]
[1743964039299,18.933972,109.53,109.45,45.79548708]
[1743964039475,45.79548708,109.53,109.47,45.79548708]
[1743964039681,26.0,109.52,109.49,45.79548708]
[1743964039979,26.0,109.52,109.46,0.14216157]
[1743964040184,26.0,109.52,109.48,45.79548708]
[1743964040488,26.0,109.52,109.46,45.79548708]
[1743964040489,71.79548708,109.52,109.46,45.79548708]
[1743964040803,64.44513594,109.51,109.46,45.79548708]
[1743964041105,18.64964886,109.46,109.42,0.063]
[1743964041289,45.79548708,109.43,109.42,0.063]
[1743964041491,45.79548708,109.44,109.42,0.063]
[1743964041875,18.64964886,109.44,109.42,0.063]
[1743964042077,45.79548708,109.43,109.42,0.063]
[1743964042308,71.26832065,109.43,109.42,0.063]
[1743964042604,71.26832065,109.43,109.39,0.063]
[1743964042605,90.44513594,109.4,109.39,0.063]
[1743964042786,90.72945908,109.4,109.39,0.063]
[1743964043583,90.44513594,109.4,109.39,0.063]
[1743964044011,44.64964886,109.4,109.39,0.063]
[1743964044223,26.0,109.4,109.39,0.063]
[1743964044375,26.0,109.41,109.39,0.063]
[1743964044703,35.44964886,109.44,109.4,45.79548708]
[1743964045114,45.79548708,109.42,109.39,0.063]
[1743964045285,64.44513594,109.43,109.39,0.063]
[1743964045500,26.0,109.4,109.39,0.063]
[1743964045817,16.8,109.44,109.39,0.063]
[1743964046122,26.0,109.41,109.39,0.063]
[1743964047017,90.44513594,109.4,109.39,0.063]
[1743964047518,64.44513594,109.4,109.39,0.063]
[1743964047724,110.52494616,109.4,109.39,0.063]
[1743964047946,64.44513594,109.35,109.34,0.063]
[1743964048093,81.36945908,109.35,109.34,0.063]
[1743964048292,127.30710773,109.35,109.34,0.063]
[1743964048521,81.51162065,109.35,109.34,0.063]
[1743964048928,475.82850773,109.35,109.34,0.063]
[1743964049129,64.72945908,109.34,109.33,0.063]
[1743964049307,18.64964886,109.34,109.33,0.063]
[1743964050003,64.44513594,109.34,109.33,0.063]
[1743964050636,64.87162065,109.34,109.33,0.063]
[1743964050997,71.27362065,109.34,109.33,0.063]
[1743964051301,64.72945908,109.34,109.33,0.063]
[1743964051502,64.44513594,109.34,109.33,0.063]
[1743964052025,64.72945908,109.34,109.33,0.063]
[1743964052228,71.27362065,109.34,109.33,0.063]
[1743964052431,143.07090773,109.31,109.3,0.063]
[1743964053416,0.14216157,109.29,109.28,0.063]
[1743964053621,64.58729751,109.29,109.28,0.063]
[1743964053927,26.0,109.25,109.19,0.063]
[1743964054135,45.79548708,109.23,109.19,0.063]
[1743964054334,45.79548708,109.21,109.19,0.063]
[1743964054517,45.79548708,109.2,109.19,0.063]
[1743964055223,0.28432314,109.23,109.19,0.063]
[1743964055224,18.64964886,109.23,109.19,0.063]
[1743964055431,45.79548708,109.21,109.19,0.063]
[1743964056118,64.72945908,109.2,109.19,0.063]
[1743964056325,44.933972,109.2,109.19,0.063]
[1743964056541,90.72945908,109.2,109.19,0.063]
[1743964056946,136.66710773,109.2,109.19,0.063]
[1743964057246,90.72945908,109.2,109.19,0.063]
[1743964057424,388.17548708,109.25,109.19,0.063]
[1743964057425,6.91809556,109.34,109.21,26.0]
[1743964057618,12.94428297,109.41,109.33,45.79548708]
[1743964057824,45.79548708,109.4,109.3,45.79548708]
[1743964058125,45.79548708,109.33,109.24,0.14216157]
[1743964058324,16.64,109.33,109.27,45.79548708]
[1743964058524,45.79548708,109.3,109.22,13.3256]
[1743964058726,45.79548708,109.3,109.25,45.79548708]
[1743964059146,18.64964886,109.32,109.24,45.79548708]
[1743964059320,45.79548708,109.31,109.25,45.79548708]
[1743964059520,45.79548708,109.3,109.25,45.79548708]
[1743964060240,16.64,109.33,109.29,45.79548708]
[1743964060536,16.64,109.33,109.3,45.79548708]
[1743964060751,16.64,109.33,109.31,45.79548708]
[1743964060932,16.54,109.33,109.22,13.3256]
[1743964061249,26.0,109.27,109.2,45.79548708]
[1743964061542,26.0,109.27,109.19,0.063]
[1743964061543,26.0,109.25,109.19,0.063]
[1743964061749,26.0,109.25,109.21,45.79548708]
[1743964062118,26.0,109.25,109.2,45.79548708]
[1743964062323,26.0,109.25,109.21,45.79548708]
[1743964062548,26.0,109.25,109.23,45.79548708]
[1743964062860,26.0,109.25,109.22,45.79548708]
[1743964063026,26.0,109.25,109.19,0.063]
[1743964063027,45.79548708,109.24,109.19,0.063]
[1743964063222,6.4073,109.25,109.19,45.85848708]
[1743964063223,45.79548708,109.25,109.19,45.85848708]
[1743964063431,26.0,109.23,109.2,45.79548708]
[1743964064244,26.0,109.23,109.19,45.85848708]
[1743964064445,45.79548708,109.22,109.19,0.063]
[1743964065141,45.79548708,109.21,109.19,0.063]
[1743964065442,45.79548708,109.2,109.19,0.063]
[1743964065759,90.87162065,109.2,109.19,0.063]
[1743964066250,137.16710773,109.2,109.19,0.063]
[1743964066450,19.57613357,109.19,109.17,0.063]
[1743964066623,87.60302065,109.18,109.17,0.063]
[1743964066827,26.0,109.14,109.08,45.85848708]
[1743964067053,45.79548708,109.13,109.08,45.85848708]
[1743964067243,45.79548708,109.13,109.08,0.063]
[1743964067421,26.0,109.11,109.09,45.79548708]
[1743964067620,42.26,109.12,109.1,45.79548708]
[1743964067825,42.26,109.12,109.08,0.063]
[1743964068051,42.26,109.12,109.08,45.85848708]
[1743964068449,88.05548708,109.12,109.08,0.063]
[1743964068646,42.26,109.12,109.08,45.85848708]
[1743964069359,16.26,109.12,109.11,45.79548708]
[1743964069733,16.18,109.17,109.11,45.79548708]
[1743964069960,16.18,109.17,109.14,45.79548708]
[1743964070151,16.18,109.17,109.15,45.79548708]
[1743964070647,16.18,109.17,109.16,45.79548708]
[1743964070852,16.14,109.22,109.16,45.79548708]
[1743964071032,0.03,109.33,109.21,45.79548708]
[1743964071231,45.79548708,109.3,109.2,45.79548708]
[1743964071455,45.79548708,109.28,109.23,45.79548708]
[1743964071657,45.79548708,109.26,109.21,45.79548708]
[1743964071867,16.3,109.27,109.23,45.79548708]
[1743964072650,16.3,109.27,109.24,45.79548708]
[1743964072845,45.79548708,109.25,109.16,82.9]
[1743964073058,45.79548708,109.24,109.19,45.79548708]
[1743964073237,45.79548708,109.22,109.11,89.8203]
[1743964073433,18.933972,109.21,109.16,45.79548708]
[1743964073642,45.79548708,109.19,109.14,45.79548708]
[1743964074036,16.22,109.2,109.15,45.79548708]
[1743964074279,62.01548708,109.2,109.15,45.79548708]
[1743964074463,16.22,109.2,109.14,45.79548708]
[1743964074668,45.79548708,109.19,109.14,45.79548708]
[1743964074856,45.79548708,109.15,109.11,0.03]
[1743964075061,45.79548708,109.13,109.11,0.03]
[1743964075275,61.97548708,109.12,109.11,0.03]
[1743964075451,80.90945908,109.12,109.11,0.03]
[1743964075773,42.18,109.12,109.11,0.03]
[1743964075973,87.97548708,109.12,109.11,0.03]
[1743964076140,16.18,109.12,109.11,0.03]
[1743964077170,16.18,109.12,109.11,45.82548708]
[1743964077376,16.18,109.12,109.11,0.03]
[1743964077746,61.97548708,109.12,109.11,0.03]
[1743964078266,16.18,109.12,109.11,0.03]
[1743964078469,61.97548708,109.12,109.11,0.03]
[1743964078966,45.79548708,109.12,109.11,0.03]
[1743964079154,16.1,109.12,109.11,0.03]
[1743964079358,87.38652065,109.12,109.11,0.03]
[1743964079545,87.38652065,109.12,109.08,0.063]
[1743964079546,26.0,109.09,109.08,0.063]
[1743964079742,71.79548708,109.09,109.08,0.063]
[1743964080438,90.87162065,109.09,109.08,0.063]
[1743964080643,97.78832065,109.09,109.08,0.063]
[1743964080940,26.0,109.05,109.02,0.063]
[1743964081264,26.0,109.0,108.95,45.85848708]
[1743964081573,71.79548708,109.0,108.95,0.063]
[1743964081740,45.79548708,108.98,108.95,0.063]
[1743964081938,16.14,108.97,108.96,45.79548708]
[1743964082266,16.12,109.01,108.96,45.79548708]
[1743964082467,45.79548708,109.03,108.95,45.85848708]
[1743964082668,16.12,109.02,108.99,45.79548708]
[1743964082841,61.91548708,109.02,108.95,0.063]
[1743964083041,71.79548708,108.99,108.95,0.063]
[1743964083244,45.79548708,108.97,108.95,0.063]
[1743964083469,26.0,108.99,108.95,0.063]
[1743964083864,45.79548708,109.0,108.95,0.063]
[1743964084169,45.79548708,109.01,108.95,0.063]
[1743964084349,45.79548708,108.99,108.95,0.063]
[1743964084663,61.89548708,109.0,108.95,0.063]
[1743964084881,16.1,109.0,108.95,0.063]
[1743964085046,61.89548708,109.0,108.95,0.063]
[1743964085245,45.79548708,109.05,108.97,45.79548708]
[1743964085570,16.04,109.04,109.0,45.79548708]
[1743964085748,16.04,109.04,109.01,45.79548708]
[1743964085953,61.83548708,109.04,108.96,0.14216157]
[1743964086149,45.79548708,109.03,108.95,58.40138708]
[1743964086364,26.0,109.01,108.95,0.063]
[1743964086670,16.32432314,109.04,108.95,0.063]
[1743964086671,45.79548708,108.98,108.95,0.063]
[1743964086875,61.79548708,109.0,108.95,45.85848708]
[1743964087340,16.0,109.0,108.95,0.063]
[1743964087543,16.0,109.0,108.97,45.79548708]
[1743964087747,16.0,109.0,108.95,0.063]
[1743964087943,61.79548708,109.0,108.95,45.85848708]
[1743964088164,16.0,109.0,108.97,45.79548708]
[1743964088465,16.0,109.0,108.95,0.063]
[1743964088768,61.79548708,109.0,108.95,45.85848708]
[1743964089068,22.422,109.0,108.95,0.063]
[1743964089242,45.79548708,108.98,108.95,0.063]
[1743964089443,18.933972,108.99,108.95,0.063]
[1743964089652,45.79548708,108.96,108.95,0.063]
[1743964089850,110.52494616,108.96,108.95,0.063]
[1743964090067,110.52494616,108.96,108.84,136.73]
[1743964090068,26.0,108.93,108.84,0.03]
[1743964090377,26.0,108.89,108.84,0.03]
[1743964090539,26.0,108.87,108.84,0.03]
[1743964090746,15.98,108.86,108.84,0.03]
[1743964091366,45.79548708,108.85,108.84,0.03]
[1743964091565,110.52494616,108.85,108.84,0.03]
[1743964091869,26.0,108.8,108.7,82.9]
[1743964092060,45.79548708,108.75,108.69,12.5429]
[1743964092372,26.0,108.76,108.64,19.806]
[1743964092554,26.0,108.76,108.65,45.79548708]
[1743964092757,45.79548708,108.72,108.67,45.79548708]
[1743964092966,16.08,108.71,108.64,19.306]
[1743964093281,16.08,108.71,108.7,45.79548708]
[1743964093450,16.08,108.71,108.66,0.5]
[1743964093782,16.08,108.71,108.64,0.5]
[1743964093973,16.08,108.71,108.65,46.29548708]
[1743964094160,16.08,108.71,108.62,6.944]
[1743964094355,16.08,108.71,108.61,6.9447]
[1743964094554,16.08,108.71,108.65,45.79548708]
[1743964094754,16.08,108.71,108.59,23.2917]
[1743964094755,45.79548708,108.66,108.58,6.4467]
[1743964095077,45.79548708,108.64,108.59,45.79548708]
[1743964095256,45.79548708,108.63,108.54,18.9124]
[1743964095458,16.08,108.65,108.55,46.29548708]
[1743964095776,359.68,108.7,108.61,0.14216157]
[1743964095974,359.68,108.7,108.65,45.79548708]
[1743964096273,0.14216157,108.73,108.62,26.0]
[1743964096576,0.28432314,108.73,108.66,45.79548708]
[1743964096796,0.28432314,108.73,108.65,45.79548708]
[1743964096797,0.42648471,108.73,108.65,45.79548708]
[1743964096956,0.42648471,108.73,108.62,13.89919325]
[1743964097166,0.42648471,108.73,108.65,45.79548708]
[1743964097466,16.12,108.75,108.68,45.79548708]
[1743964097668,45.79548708,108.69,108.62,13.89919325]
[1743964097975,18.933972,108.67,108.62,13.89919325]
[1743964098175,45.79548708,108.64,108.62,13.89919325]
[1743964098377,16.12,108.66,108.62,13.89919325]
[1743964098566,0.28432314,108.62,108.61,21.06057976]
[1743964098768,16.12,108.66,108.61,19.76929424]
[1743964098966,90.87162065,108.62,108.61,19.76929424]
[1743964099290,136.66710773,108.62,108.61,12.46559424]
[1743964099479,90.72945908,108.62,108.61,5.16189424]
[1743964099781,26.0,108.62,108.61,5.16189424]
[1743964099972,18.64964886,108.64,108.61,5.16189424]
[1743964099973,16.12,108.66,108.61,5.16189424]
[1743964100276,16.12,108.66,108.61,50.95738132]
[1743964100479,61.91548708,108.66,108.57,6.6895]
[1743964100687,16.12,108.66,108.57,13.1369]
[1743964100982,16.12,108.66,108.57,6.6895]
[1743964100983,26.0,108.6,108.57,6.6895]
[1743964101163,71.79548708,108.6,108.51,6.7195]
[1743964101368,71.93764865,108.52,108.51,0.03]
[1743964101567,16.72,108.53,108.51,45.82548708]
[1743964101753,26.0,108.58,108.51,0.03]
[1743964102087,16.8,108.57,108.54,45.79548708]
[1743964102278,16.8,108.57,108.56,45.79548708]
[1743964102574,6.4427,108.65,108.55,45.79548708]
[1743964102782,16.84,108.61,108.51,6.62306157]
[1743964102972,45.79548708,108.59,108.51,0.03]
[1743964103155,64.72945908,108.6,108.53,45.79548708]
[1743964103350,45.79548708,108.58,108.51,0.03]
[1743964103558,45.79548708,108.52,108.51,0.03]
[1743964103787,62.77548708,108.52,108.51,0.03]
[1743964104076,16.98,108.52,108.51,0.03]
[1743964104277,81.85162065,108.52,108.51,0.03]
[1743964104580,81.85162065,108.52,108.4,45.79548708]
[1743964104878,18.933972,108.46,108.38,6.6895]
[1743964105183,17.0,108.45,108.4,45.79548708]
[1743964105383,17.0,108.45,108.44,45.79548708]
[1743964105677,17.0,108.45,108.4,45.79548708]
[1743964105889,17.0,108.45,108.39,18.79181043]
[1743964106073,17.0,108.45,108.44,45.79548708]
[1743964106277,45.79548708,108.5,108.4,45.79548708]
[1743964106587,45.79548708,108.46,108.38,6.6895]
[1743964106759,45.79548708,108.43,108.38,6.6895]
[1743964106954,16.98,108.42,108.38,6.6895]
[1743964107885,16.98,108.42,108.4,0.03]
[1743964108089,16.98,108.42,108.41,45.79548708]
[1743964108387,17.02,108.48,108.41,45.79548708]
[1743964108584,45.79548708,108.45,108.4,0.03]
[1743964108759,0.28432314,108.44,108.4,0.03]
[1743964108959,45.79548708,108.41,108.4,0.03]
[1743964109159,62.99548708,108.41,108.4,0.03]
[1743964109371,17.2,108.41,108.4,0.03]
[1743964109571,17.2,108.46,108.4,45.82548708]
[1743964109773,17.2,108.46,108.42,45.79548708]
[1743964109983,45.79548708,108.43,108.4,0.03]
[1743964110182,17.2,108.46,108.4,0.03]
[1743964110392,45.79548708,108.43,108.4,0.03]
[1743964110688,18.79181043,108.44,108.4,0.03]
[1743964110892,62.99548708,108.46,108.41,45.79548708]
[1743964111075,0.14216157,108.53,108.41,6.6895]
[1743964111258,17.4,108.51,108.46,45.79548708]
[1743964111462,74.28048708,108.6,108.45,45.79548708]
[1743964111687,17.4,108.56,108.52,45.79548708]
[1743964111884,17.4,108.56,108.49,0.14216157]
[1743964112160,17.4,108.56,108.49,19.07613357]
[1743964112389,17.38,108.61,108.55,45.79548708]
[1743964112706,18.0972,108.69,108.6,45.79548708]
[1743964112707,6.4409,108.68,108.6,45.79548708]
[1743964112867,17.36,108.65,108.6,45.79548708]
[1743964113069,17.36,108.65,108.63,45.79548708]
[1743964113374,63.15548708,108.7,108.64,45.79548708]
[1743964113690,63.15548708,108.7,108.67,45.79548708]
[1743964113691,17.36,108.7,108.67,45.79548708]
[1743964113897,30.0,108.68,108.65,64.87162065]
[1743964114060,30.0,108.68,108.67,45.79548708]
[1743964114262,17.32,108.77,108.68,0.14216157]
[1743964114486,23.793,108.82,108.7,45.79548708]
[1743964114672,45.79548708,108.76,108.66,12.624]
[1743964114882,45.79548708,108.77,108.72,45.79548708]
[1743964115189,45.79548708,108.76,108.66,12.624]
[1743964115388,17.36,108.75,108.69,45.79548708]
[1743964115579,17.36,108.75,108.72,45.79548708]
[1743964115787,45.79548708,108.8,108.74,45.79548708]
[1743964115965,344.903,108.84,108.78,45.79548708]
[1743964115966,17.423,108.84,108.78,45.79548708]
[1743964116170,45.79548708,108.8,108.7,45.79548708]
[1743964116367,17.423,108.84,108.76,45.79548708]
[1743964116581,17.423,108.84,108.78,45.79548708]
[1743964116892,17.423,108.84,108.81,45.79548708]
[1743964117195,45.79548708,108.83,108.75,45.79548708]
[1743964117368,23.8545,108.84,108.75,45.79548708]
[1743964117691,45.79548708,108.8,108.75,45.79548708]
[1743964117896,45.79548708,108.81,108.72,0.14216157]
[1743964118199,45.79548708,108.83,108.77,45.79548708]
[1743964118371,18.85481043,108.84,108.72,0.14216157]
[1743964118574,63.19548708,108.83,108.75,45.79548708]
[1743964118770,17.4,108.83,108.81,45.79548708]
[1743964119091,0.063,108.84,108.75,45.79548708]
[1743964119400,0.063,108.84,108.83,45.79548708]
[1743964119580,0.063,108.84,108.76,0.14216157]
[1743964119777,0.063,108.84,108.75,45.79548708]
[1743964119988,0.063,108.84,108.82,45.79548708]
[1743964120176,45.85848708,108.84,108.75,45.79548708]
[1743964120496,26.0,108.81,108.71,82.9]
[1743964120679,45.79548708,108.79,108.7,182.49548708]
[1743964120996,17.38,108.81,108.75,45.79548708]
[1743964121182,45.79548708,108.8,108.75,45.79548708]
[1743964121376,45.79548708,108.8,108.74,45.79548708]
[1743964121680,63.17548708,108.81,108.71,0.14216157]
[1743964121883,17.38,108.81,108.76,45.79548708]
[1743964122088,17.443,108.81,108.77,45.79548708]
[1743964122270,45.79548708,108.8,108.71,0.14216157]
[1743964122476,63.23848708,108.81,108.75,45.79548708]
[1743964122677,63.23848708,108.81,108.76,45.79548708]
[1743964122877,63.23848708,108.81,108.7,45.79548708]
[1743964123087,45.79548708,108.79,108.7,45.79548708]
[1743964123283,17.443,108.81,108.76,45.79548708]
[1743964123673,17.443,108.81,108.78,45.79548708]
[1743964123880,63.23848708,108.81,108.71,0.42648471]
[1743964124080,45.79548708,108.76,108.71,45.79548708]
[1743964124274,45.79548708,108.76,108.68,136.7]
[1743964124490,45.79548708,108.76,108.67,7.034]
[1743964124809,45.79548708,108.72,108.66,12.624]
[1743964125104,45.79548708,108.72,108.67,45.79548708]
[1743964125473,45.79548708,108.72,108.6,65.80358708]
[1743964125474,45.79548708,108.68,108.6,65.80358708]
[1743964125806,6.4379,108.73,108.64,45.79548708]
[1743964126097,17.22,108.74,108.67,45.79548708]
[1743964126307,17.22,108.74,108.68,45.79548708]
[1743964126599,17.22,108.74,108.72,45.79548708]
[1743964126983,17.22,108.74,108.73,45.79548708]
[1743964127189,45.79548708,108.76,108.71,45.79548708]
[1743964127376,45.79548708,108.72,108.63,82.9]
[1743964127704,17.18,108.72,108.66,45.79548708]
[1743964127895,17.18,108.72,108.67,45.79548708]
[1743964128102,17.16,108.77,108.71,45.79548708]
[1743964128306,17.16,108.77,108.73,45.79548708]
[1743964128484,17.16,108.77,108.74,45.79548708]
[1743964128808,45.79548708,108.77,108.65,64.94513594]
[1743964129011,45.79548708,108.75,108.69,45.79548708]
[1743964129321,45.79548708,108.74,108.69,45.79548708]
[1743964129492,62.97548708,108.75,108.69,45.79548708]
[1743964129695,62.97548708,108.75,108.66,0.14216157]
[1743964129893,45.79548708,108.72,108.67,45.79548708]
[1743964130205,18.64964886,108.77,108.67,0.14216157]
[1743964130382,18.64964886,108.77,108.68,45.79548708]
[1743964130587,45.79548708,108.73,108.65,45.79548708]
[1743964130914,18.64964886,108.77,108.7,45.79548708]
[1743964131080,45.79548708,108.76,108.7,45.79548708]
[1743964131287,45.79548708,108.76,108.71,45.79548708]
[1743964132098,45.79548708,108.72,108.64,0.14216157]
[1743964132294,45.79548708,108.72,108.67,45.79548708]
[1743964132589,45.79548708,108.74,108.68,45.79548708]
[1743964132798,45.79548708,108.76,108.7,45.79548708]
[1743964133004,45.79548708,108.75,108.7,45.79548708]
[1743964133199,45.79548708,108.71,108.63,82.9]
[1743964133403,45.79548708,108.68,108.63,45.79548708]
[1743964133611,45.79548708,108.68,108.6,20.0081]
[1743964133903,18.64964886,108.7,108.63,45.79548708]
[1743964134104,17.04,108.71,108.61,0.14216157]
[1743964134302,17.04,108.71,108.67,45.79548708]
[1743964134504,344.38,108.76,108.68,45.79548708]
[1743964134714,35.62964886,108.77,108.7,45.79548708]
[1743964134910,64.44513594,108.76,108.7,45.79548708]
[1743964135111,45.79548708,108.75,108.7,45.79548708]
[1743964135509,45.79548708,108.73,108.64,0.42648471]
[1743964135710,18.64964886,108.75,108.68,45.79548708]
[1743964136016,45.79548708,108.73,108.68,45.79548708]
[1743964136214,16.98,108.77,108.7,45.79548708]
[1743964136618,16.92,108.8,108.68,0.28432314]
[1743964136911,45.79548708,108.76,108.68,0.14216157]
[1743964137116,69.14938708,108.8,108.7,0.14216157]
[1743964137309,16.92,108.8,108.74,45.79548708]
[1743964137505,45.79548708,108.79,108.74,45.79548708]
[1743964137708,45.79548708,108.79,108.7,45.93764865]
[1743964138015,23.3539,108.8,108.7,45.93764865]
[1743964138016,0.063,108.77,108.71,0.14216157]
[1743964138206,0.063,108.77,108.74,45.79548708]
[1743964138413,0.063,108.77,108.71,0.14216157]